lending/lending_fUSD_20241229
["ID","MTS","AMOUNT","RATE_DAILY","PERIOD"]
[346978813,1735446646835,-151.0,0.00012986,2]
[346978815,1735446646844,-500.0,0.00012986,2]
[346978817,1735446646853,-151.0,0.00012986,2]
[346978819,1735446646862,-151.0,0.00012986,2]
[346978821,1735446646870,-500.0,0.00012986,2]
[346978823,1735446646879,-151.0,0.00012986,2]
[346978825,1735446646889,-151.0,0.00012986,2]
[346978827,1735446646898,-500.0,0.00012986,2]
[346978829,1735446646906,-262.918548,0.00012986,2]
[346978831,1735446646915,-500.0,0.00012986,2]
[346978833,1735446646925,-151.975359,0.00012986,2]
[346978835,1735446646934,-500.0,0.00012986,2]
[346978837,1735446646943,-500.0,0.00012986,2]
[346978839,1735446646952,-344.458673,0.00012986,2]
[346978841,1735446646961,-344.458673,0.00012986,2]
[346978843,1735446646970,-344.458673,0.00012986,2]
[346978845,1735446646979,-151.989925,0.00012986,2]
[346978847,1735446646988,-344.458673,0.00012986,2]
[346978849,1735446646997,-344.458673,0.00012986,2]
[346978851,1735446647006,-344.458673,0.00012986,2]
[346978853,1735446647015,-151.0,0.00012986,2]
[346978855,1735446647024,-151.0,0.00012986,2]
[346978857,1735446647033,-178.267845,0.00012986,2]
[346978859,1735446647042,-153.853484,0.00012986,2]
[346978861,1735446647052,-1367.5,0.00012986,2]
[346978863,1735446647061,-1367.5,0.00012986,2]
[346978865,1735446647070,-1367.5,0.00012986,2]
[346978867,1735446647079,-152.822765,0.00012986,2]
[346978869,1735446647088,-151.0,0.00012986,2]
[346978871,1735446647098,-152.925727,0.00012986,2]
[346978873,1735446647107,-264.723567,0.00012986,2]
[346978875,1735446647116,-197.242396,0.00012986,2]
[346978877,1735446647127,-294.560824,0.00012986,2]
[346978879,1735446647136,-500.0,0.00012986,2]
[346978881,1735446647145,-151.0,0.00012986,2]
[346978883,1735446647155,-176.110835,0.00012986,2]
[346978885,1735446647164,-151.0,0.00012986,2]
[346978887,1735446647173,-151.0,0.00012986,2]
[346978889,1735446647182,-151.0,0.00012986,2]
[346978891,1735446647191,-895.379107,0.00012986,2]
[346978893,1735446647200,-895.379107,0.00012986,2]
[346978895,1735446647210,-895.379107,0.00012986,2]
[346978897,1735446647219,-895.379107,0.00012986,2]
[346978899,1735446647228,-153.811063,0.00012986,2]
[346978901,1735446647237,-151.0,0.00012986,2]
[346978903,1735446647247,-151.0,0.00012986,2]
[346978905,1735446647256,-154.408924,0.00012986,2]
[346978907,1735446647265,-151.0,0.00012986,2]
[346978909,1735446647274,-151.0,0.00012986,2]
[346978911,1735446647283,-151.0,0.00012986,2]
[346978913,1735446647292,-151.0,0.00012986,2]
[346978915,1735446647301,-151.0,0.00012986,2]
[346978917,1735446647310,-151.0,0.00012986,2]
[346978919,1735446647320,-504.60407059,0.00012986,2]
[346978921,1735446647330,-151.0,0.00012986,2]
[346978923,1735446647339,-151.0,0.00012986,2]
[346978925,1735446647348,-151.0,0.00012986,2]
[346978927,1735446647357,-151.0,0.00012986,2]
[346978929,1735446647366,-151.0,0.00012986,2]
[346978931,1735446647376,-151.0,0.00012986,2]
[346978933,1735446647384,-873.64,0.00012986,2]
[346978935,1735446647394,-151.0,0.00012986,2]
[346978937,1735446647404,-151.0,0.00012986,2]
[346978939,1735446647414,-500.0,0.00012986,2]
[346978941,1735446647423,-151.0,0.00012986,2]
[346978943,1735446647433,-552.16,0.00012986,2]
[346978945,1735446647442,-152.082813,0.00012986,2]
[346978947,1735446647451,-500.0,0.00012986,2]
[346978949,1735446647460,-151.0,0.00012986,2]
[346978951,1735446647470,-151.0,0.00012986,2]
[346978953,1735446647479,-151.0,0.00012986,2]
[346978955,1735446647490,-151.0,0.00012986,2]
[346978957,1735446647498,-2120.32,0.00012986,2]
[346978959,1735446647508,-151.0,0.00012986,2]
[346978961,1735446647517,-152.459182,0.00012986,2]
[346978963,1735446647527,-500.0,0.00012986,2]
[346978965,1735446647536,-500.0,0.00012987,2]
[346978967,1735446647546,-500.0,0.00012987,2]
[346978969,1735446647556,-917.67,0.00012987,2]
[346978971,1735446647565,-500.0,0.00012987,2]
[346978974,1735446647575,-500.0,0.00012987,2]
[346978976,1735446647585,-500.0,0.00012987,2]
[346978978,1735446647594,-500.0,0.00012987,2]
[346978980,1735446647604,-500.0,0.00012987,2]
[346978982,1735446647613,-500.0,0.00012987,2]
[346978984,1735446647622,-500.0,0.00012987,2]
[346978986,1735446647632,-649.58,0.00012987,2]
[346978988,1735446647641,-151.34553,0.00012987,2]
[346978990,1735446647650,-500.0,0.00012987,2]
[346978992,1735446647659,-151.0,0.00012987,2]
[346978994,1735446647668,-151.34307,0.00012987,2]
[346978996,1735446647678,-381.74173926,0.00012987,2]
[346978998,1735446647687,-500.0,0.00012987,2]
[346979000,1735446647696,-2000.0,0.00012987,2]
[346979002,1735446647705,-200.0,0.00012987,2]
[346979004,1735446647714,-500.0,0.00012987,2]
[346979006,1735446647723,-500.0,0.00012987,2]
[346979008,1735446647733,-151.0,0.00012987,2]
[346979010,1735446647743,-151.505444,0.00012987,2]
[346979012,1735446647752,-500.0,0.00012987,2]
[346979013,1735446647761,-500.0,0.00012987,2]
[346979015,1735446647771,-500.0,0.00012987,2]
[346979017,1735446647780,-500.0,0.00012987,2]
[346979019,1735446647790,-500.0,0.00012987,2]
[346979021,1735446647799,-500.0,0.00012987,2]
[346979023,1735446647808,-151.0,0.00012987,2]
[346979026,1735446647817,-151.0,0.00012987,2]
[346979028,1735446647826,-500.0,0.00012987,2]
[346979029,1735446647835,-500.0,0.00012987,2]
[346979031,1735446647844,-500.0,0.00012987,2]
[346979033,1735446647853,-3473.14,0.00012987,2]
[346979035,1735446647863,-2000.0,0.00012987,2]
[346979037,1735446647872,-200.0,0.00012987,2]
[346979039,1735446647883,-152.17216,0.00012987,2]
[346979041,1735446647892,-151.0,0.00012987,2]
[346979043,1735446647903,-500.0,0.00012987,2]
[346979045,1735446647912,-500.0,0.00012987,2]
[346979047,1735446647922,-344.458673,0.00012987,2]
[346979049,1735446647931,-344.458673,0.00012987,2]
[346979051,1735446647941,-500.0,0.00012987,2]
[346979053,1735446647950,-500.0,0.00012987,2]
[346979055,1735446647960,-500.0,0.00012987,2]
[346979058,1735446647969,-1176.28,0.00012987,2]
[346979060,1735446647978,-151.0,0.00012987,2]
[346979061,1735446647988,-500.0,0.00012987,2]
[346979063,1735446647997,-500.0,0.00012987,2]
[346979065,1735446648006,-500.0,0.00012987,2]
[346979067,1735446648015,-500.0,0.00012987,2]
[346979069,1735446648024,-151.0,0.00012987,2]
[346979071,1735446648033,-1000.0,0.00012987,2]
[346979073,1735446648043,-500.0,0.00012987,2]
[346979075,1735446648052,-500.0,0.00012987,2]
[346979078,1735446648062,-500.0,0.00012987,2]
[346979080,1735446648071,-2404.29475,0.00012987,2]
[346979081,1735446648081,-151.0,0.00012987,2]
[346979083,1735446648090,-500.0,0.00012987,2]
[346979085,1735446648099,-500.0,0.00012987,2]
[346979087,1735446648108,-500.0,0.00012988,2]
[346979090,1735446648118,-151.0,0.00012988,2]
[346979092,1735446648128,-500.0,0.00012988,2]
[346979093,1735446648138,-500.0,0.00012989,2]
[346979095,1735446648147,-500.0,0.00012989,2]
[346979098,1735446648156,-124.82751636,0.00012989,2]
[346979101,1735446648182,-375.17248364,0.00012989,2]
[346979103,1735446648191,-884.03,0.00012989,2]
[346979105,1735446648200,-1367.5,0.00012989,2]
[346979107,1735446648210,-500.0,0.00012989,2]
[346979109,1735446648219,-500.0,0.00012989,2]
[346979111,1735446648228,-500.0,0.00012989,2]
[346979113,1735446648237,-151.0,0.00012989,2]
[346979115,1735446648246,-151.0,0.00012989,2]
[346979117,1735446648256,-151.0,0.00012989,2]
[346979119,1735446648265,-151.0,0.00012989,2]
[346979121,1735446648274,-151.0,0.00012989,2]
[346979123,1735446648283,-1286.8056513,0.00012989,2]
[346979125,1735446648292,-3372.89186506,0.0001299,2]
[346979131,1735446648340,-1611.35535055,0.0001299,2]
[346979133,1735446648350,-367.57992548,0.0001299,2]
[346979135,1735446648362,-2099.14772333,0.0001299,2]
[346979147,1735446648543,-5091.82413923,0.0001299,2]
[346979150,1735446648560,-5744.24932934,0.0001299,2]
[346979152,1735446648571,-442.61210009,0.0001299,2]
[346979154,1735446648584,-808.37339128,0.0001299,2]
[346979157,1735446648595,-2610.97439795,0.0001299,2]
[346979159,1735446648606,-466.5999998,0.0001299,2]
[346979161,1735446648618,-4284.08219739,0.0001299,2]
[346979163,1735446648629,-437.5677695,0.0001299,2]
[346979165,1735446648640,-4458.27354714,0.0001299,2]
[346979169,1735446648662,-265.58802222,0.0001299,2]
[346979224,1735446649186,-500.0,0.00012984,2]
[346979226,1735446649195,-383.5024607,0.0001299,2]
[346979228,1735446649207,-604.799997,0.0001299,2]
[346979230,1735446649218,-939.00831506,0.0001299,2]
[346979232,1735446649228,-5330.88,0.0001299,2]
[346979235,1735446649241,-9849.16828037,0.0001299,2]
[346979237,1735446649252,-6806.8384954,0.0001299,2]
[346979258,1735446649457,-8847.32969744,0.0001299,2]
[346979261,1735446649468,-5363.82640682,0.0001299,2]
[346979266,1735446649506,-435.64141315,0.0001299,2]
[346979268,1735446649517,-978.79830355,0.0001299,2]
[346979323,1735446650026,-626.8265502,0.0001299,2]
[346979329,1735446650075,-201377.15030259,0.0001299,2]
[346979331,1735446650087,-332.6633852,0.0001299,2]
[346979333,1735446650098,-43407.35718643,0.0001299,2]
[346979334,1735446650109,-467.37274154,0.0001299,2]
[346979335,1735446650118,-237.53154396,0.0001299,2]
[346979336,1735446650129,-1138.3242965,0.0001299,2]
[346979337,1735446650140,-383.5086327,0.0001299,2]
[346979338,1735446650151,-8856.7748424,0.0001299,2]
[346979340,1735446650163,-2302.97370934,0.0001299,2]
[346979342,1735446650174,-278.02878999,0.0001299,2]
[346979344,1735446650186,-39487.17226742,0.0001299,2]
[346979809,1735447529463,-500.0,0.00022499,120]
[346979810,1735447529507,-2000.0,0.00022499,120]
[346979811,1735447529545,-200.0,0.00022499,120]
[346979812,1735447529587,-172.49,0.00023,120]
[346979813,1735447529625,-277.7,0.00023,120]
[346979821,1735447569088,-1086.97,0.00024681,120]
[346979822,1735447569137,-102283.50826719,0.00024681,120]
[346979823,1735447569181,-892.0,0.00024681,120]
[346979824,1735447569224,-1000.0,0.00024681,120]
[346979825,1735447569265,-1000.0,0.00024681,120]
[346979826,1735447569305,-1000.0,0.00024681,120]
[346979827,1735447569345,-2758.93282258,0.00024681,120]
[346979828,1735447569384,-2325.12283664,0.00024681,120]
[346979829,1735447569428,-1000.0,0.00024681,120]
[346979830,1735447569468,-208.26129374,0.00024681,120]
[346979831,1735447569507,-360.85904472,0.00024681,120]
[346979832,1735447569547,-699.79070076,0.00024681,120]
[346979833,1735447569586,-3113.23320771,0.00024681,120]
[346979834,1735447569626,-548.19207972,0.00024681,120]
[346979835,1735447569668,-756.0,0.00024681,120]
[346979836,1735447569710,-1093.06040528,0.00024681,120]
[346979837,1735447569753,-1339.52559507,0.00024681,120]
[346979838,1735447569794,-3124.64902572,0.00024681,120]
[346979839,1735447569838,-155.18903562,0.00024681,120]
[346979840,1735447569881,-3000.0,0.00024681,120]
[346979841,1735447569922,-1653.59249313,0.00024681,120]
[346979842,1735447569963,-816.3864661,0.00024681,120]
[346979843,1735447570007,-250.0,0.00024681,120]
[346979844,1735447570047,-3524.4040625,0.00024681,120]
[346979845,1735447570093,-4758.36686404,0.00024681,120]
[346979846,1735447570135,-4096.90572606,0.00024681,120]
[346979847,1735447570177,-4783.04214527,0.00024681,120]
[346979848,1735447570215,-4739.13423373,0.00024681,120]
[346979849,1735447570481,-4132.16403475,0.00024681,120]
[346979850,1735447570519,-5062.72225835,0.00024681,120]
[346979851,1735447570559,-191.48403905,0.00024681,120]
[346979852,1735447570597,-560.31241794,0.00024681,120]
[346979853,1735447570635,-264.37011911,0.00024681,120]
[346979854,1735447570673,-265.68673355,0.00024681,120]
[346979855,1735447570715,-6264.28309946,0.00024681,120]
[346979856,1735447570755,-159.88520846,0.00024681,120]
[346979857,1735447570795,-1467.43535433,0.00024681,120]
[346979858,1735447570834,-232.82601197,0.00024681,120]
[346979859,1735447570876,-170.948399,0.00024681,120]
[346979860,1735447570917,-170.948399,0.00024681,120]
[346979861,1735447570956,-170.948399,0.00024681,120]
[346979862,1735447570997,-170.948399,0.00024681,120]
[346979863,1735447571039,-170.94840126,0.00024681,120]
[346979864,1735447571081,-1359.4481319,0.00024681,120]
[346979865,1735447571123,-1761.29419111,0.00024681,120]
[346979866,1735447571169,-999.999999,0.00024681,120]
[346979867,1735447571211,-575.74716723,0.00024681,120]
[346979868,1735447571250,-5421.22046869,0.00024681,120]
[346979869,1735447571291,-639.69788563,0.00024681,120]
[346979870,1735447571331,-3400.0,0.00024681,120]
[346979871,1735447571370,-6320.0,0.00024681,120]
[346979872,1735447571411,-200.05207402,0.00024681,120]
[346979873,1735447571450,-5000.97555327,0.00024681,120]
[346979874,1735447571489,-925978.80469016,0.00024681,120]
[346979875,1735447571528,-290.0,0.00024681,120]
[346979876,1735447571566,-5789.10018482,0.00024681,120]
[346979877,1735447571606,-21063.38799587,0.00024681,120]
[346979878,1735447571644,-198.0,0.00024681,120]
[346979879,1735447571683,-522.64324392,0.00024681,120]
[346979880,1735447571721,-9947.77978876,0.00024681,120]
[346979881,1735447571759,-183.0,0.00024681,120]
[346979882,1735447571798,-5526.0,0.00024681,120]
[346979883,1735447606901,352.47413248,0.00024681,120]
[346979930,1735447688159,1885.0,0.00024681,120]
[346979931,1735447719145,3000.0,0.00024681,120]
[346979932,1735447753558,3000.0,0.00024681,120]
[346979952,1735447832267,-657.79,0.00010026,2]
[346979953,1735447832277,-264.7,0.00010137,2]
[346979954,1735447832286,-196.77909196,0.00011767,2]
[346979955,1735447832296,-250.0,0.00011783,2]
[346979956,1735447832305,-313.65,0.00011828,2]
[346979957,1735447832314,-1000.0,0.00011882,2]
[346979958,1735447832324,-250.0,0.00011962,2]
[346979959,1735447832333,-522.66,0.00011967,2]
[346979960,1735447832342,-500.0,0.00012,2]
[346979961,1735447832352,-450.0,0.00012,2]
[346979962,1735447832361,-657.79,0.0001229,2]
[346979963,1735447832371,-416.661,0.0001234,2]
[346979964,1735447832380,-396.15362278,0.00012345,2]
[346979965,1735447832390,-182.74,0.000124,2]
[346979966,1735447832399,-1533.52,0.000124,2]
[346979967,1735447832408,-436.65,0.000124,2]
[346979968,1735447832417,-182.74,0.000124,2]
[346979969,1735447832426,-432.35,0.000124,2]
[346979970,1735447832435,-182.56,0.000124,2]
[346979971,1735447832445,-7147.0,0.00012472,2]
[346979972,1735447832454,-500.0,0.000125,2]
[346979973,1735447832463,-19036.39417806,0.00012805,2]
[346979974,1735447832472,-2503.57896,0.0001286,2]
[346979975,1735447832481,-196.77909195,0.00012883,2]
[346979976,1735447832491,-368.11,0.00012885,2]
[346979977,1735447832500,-500.0,0.00012886,2]
[346979978,1735447832509,-2000.0,0.00012886,2]
[346979979,1735447832518,-200.0,0.00012886,2]
[346979980,1735447832527,-173.83071428,0.0001289,2]
[346979981,1735447832536,-173.83071426,0.00012895,2]
[346979982,1735447832545,-463.827,0.000129,2]
[346979983,1735447832554,-186.23867853,0.000129,2]
[346979984,1735447832564,-173.83071426,0.000129,2]
[346979985,1735447832573,-344.24057138,0.00012982,2]
[346979986,1735447832583,-408.94034859,0.00012982,2]
[346979987,1735447832592,-500.0,0.00012982,2]
[346979988,1735447832601,-3774.65,0.00012982,2]
[346979989,1735447832611,-561.25,0.00012982,2]
[346979990,1735447832620,-5227.93,0.00012982,2]
[346979991,1735447832631,-2355.94,0.00012982,2]
[346979992,1735447832640,-5761.15,0.00012982,2]
[346979993,1735447832650,-1877.05,0.00012982,2]
[346979994,1735447832659,-3836.83,0.00012982,2]
[346979995,1735447832669,-1633.0,0.00012982,2]
[346979996,1735447832680,-1564.96,0.00012982,2]
[346979997,1735447832690,-500.0,0.00012982,2]
[346979998,1735447832699,-500.0,0.00012982,2]
[346979999,1735447832708,-939.24,0.00012982,2]
[346980001,1735447832717,-500.0,0.00012982,2]
[346980003,1735447832726,-1566.77,0.00012982,2]
[346980005,1735447832735,-1154.7,0.00012982,2]
[346980007,1735447832744,-1180.66,0.00012982,2]
[346980009,1735447832754,-500.0,0.00012982,2]
[346980010,1735447832763,-1148.16,0.00012982,2]
[346980012,1735447832773,-871.09,0.00012982,2]
[346980014,1735447832782,-500.0,0.00012983,2]
[346980016,1735447832792,-500.0,0.00012983,2]
[346980018,1735447832801,-500.0,0.00012983,2]
[346980020,1735447832810,-500.0,0.00012983,2]
[346980022,1735447832819,-500.0,0.00012983,2]
[346980024,1735447832829,-500.0,0.00012983,2]
[346980026,1735447832838,-500.0,0.00012983,2]
[346980028,1735447832849,-500.0,0.00012983,2]
[346980030,1735447832858,-500.0,0.00012983,2]
[346980032,1735447832867,-500.0,0.00012983,2]
[346980034,1735447832876,-500.0,0.00012983,2]
[346980036,1735447832886,-500.0,0.00012983,2]
[346980038,1735447832895,-500.0,0.00012983,2]
[346980040,1735447832904,-500.0,0.00012983,2]
[346980042,1735447832914,-500.0,0.00012983,2]
[346980045,1735447832923,-500.0,0.00012983,2]
[346980047,1735447832933,-500.0,0.00012983,2]
[346980048,1735447832942,-500.0,0.00012983,2]
[346980050,1735447832951,-500.0,0.00012983,2]
[346980051,1735447832960,-500.0,0.00012983,2]
[346980052,1735447832970,-500.0,0.00012983,2]
[346980053,1735447832979,-500.0,0.00012983,2]
[346980054,1735447832988,-500.0,0.00012983,2]
[346980055,1735447832997,-500.0,0.00012983,2]
[346980056,1735447833006,-500.0,0.00012983,2]
[346980057,1735447833015,-500.0,0.00012983,2]
[346980058,1735447833024,-500.0,0.00012983,2]
[346980059,1735447833035,-500.0,0.00012983,2]
[346980060,1735447833044,-500.0,0.00012983,2]
[346980061,1735447833053,-500.0,0.00012983,2]
[346980062,1735447833063,-500.0,0.00012983,2]
[346980063,1735447833072,-500.0,0.00012983,2]
[346980064,1735447833081,-500.0,0.00012983,2]
[346980065,1735447833091,-500.0,0.00012983,2]
[346980066,1735447833100,-500.0,0.00012983,2]
[346980067,1735447833110,-500.0,0.00012983,2]
[346980068,1735447833119,-500.0,0.00012983,2]
[346980069,1735447833128,-500.0,0.00012983,2]
[346980070,1735447833137,-500.0,0.00012983,2]
[346980071,1735447833147,-500.0,0.00012983,2]
[346980072,1735447833156,-500.0,0.00012983,2]
[346980073,1735447833165,-500.0,0.00012983,2]
[346980074,1735447833175,-500.0,0.00012983,2]
[346980075,1735447833184,-500.0,0.00012983,2]
[346980076,1735447833194,-500.0,0.00012983,2]
[346980077,1735447833203,-500.0,0.00012983,2]
[346980078,1735447833217,-500.0,0.00012983,2]
[346980079,1735447833226,-500.0,0.00012983,2]
[346980080,1735447833236,-500.0,0.00012983,2]
[346980081,1735447833245,-500.0,0.00012983,2]
[346980082,1735447833254,-500.0,0.00012983,2]
[346980083,1735447833263,-500.0,0.00012983,2]
[346980084,1735447833272,-500.0,0.00012983,2]
[346980085,1735447833282,-500.0,0.00012983,2]
[346980086,1735447833293,-500.0,0.00012983,2]
[346980087,1735447833303,-500.0,0.00012983,2]
[346980088,1735447833312,-500.0,0.00012983,2]
[346980089,1735447833320,-500.0,0.00012983,2]
[346980090,1735447833333,-500.0,0.00012983,2]
[346980091,1735447833342,-500.0,0.00012983,2]
[346980092,1735447833352,-500.0,0.00012983,2]
[346980093,1735447833361,-500.0,0.00012983,2]
[346980094,1735447833371,-516.58671904,0.00012983,2]
[346980095,1735447833381,-650.13,0.00012983,2]
[346980096,1735447833390,-500.0,0.00012983,2]
[346980097,1735447833399,-500.0,0.00012983,2]
[346980098,1735447833409,-500.0,0.00012983,2]
[346980099,1735447833418,-500.0,0.00012983,2]
[346980100,1735447833427,-500.0,0.00012983,2]
[346980101,1735447833438,-500.0,0.00012983,2]
[346980102,1735447833446,-500.0,0.00012983,2]
[346980103,1735447833456,-500.0,0.00012983,2]
[346980104,1735447833465,-500.0,0.00012983,2]
[346980105,1735447833474,-500.0,0.00012983,2]
[346980106,1735447833483,-500.0,0.00012983,2]
[346980107,1735447833492,-500.0,0.00012983,2]
[346980108,1735447833502,-793.04,0.00012983,2]
[346980109,1735447833510,-500.0,0.00012983,2]
[346980110,1735447833519,-500.0,0.00012983,2]
[346980111,1735447833529,-500.0,0.00012983,2]
[346980112,1735447833538,-500.0,0.00012983,2]
[346980113,1735447833547,-500.0,0.00012983,2]
[346980114,1735447833556,-837.23,0.00012983,2]
[346980115,1735447833565,-726.46,0.00012983,2]
[346980116,1735447833574,-503.24359233,0.00012983,2]
[346980117,1735447833583,-500.0,0.00012983,2]
[346980118,1735447833593,-500.0,0.00012983,2]
[346980119,1735447833602,-500.0,0.00012983,2]
[346980120,1735447833611,-779.46,0.00012983,2]
[346980121,1735447833622,-500.0,0.00012983,2]
[346980122,1735447833631,-500.0,0.00012983,2]
[346980123,1735447833642,-606.10129631,0.00012983,2]
[346980124,1735447833650,-500.0,0.00012983,2]
[346980125,1735447833659,-500.0,0.00012983,2]
[346980126,1735447833668,-518.81,0.00012983,2]
[346980127,1735447833677,-500.0,0.00012983,2]
[346980128,1735447833686,-500.0,0.00012983,2]
[346980129,1735447833695,-500.0,0.00012983,2]
[346980130,1735447833704,-511.02454487,0.00012983,2]
[346980131,1735447833714,-500.0,0.00012983,2]
[346980132,1735447833724,-500.0,0.00012983,2]
[346980133,1735447833733,-500.0,0.00012983,2]
[346980134,1735447833742,-500.0,0.00012983,2]
[346980135,1735447833751,-500.0,0.00012983,2]
[346980136,1735447833760,-500.0,0.00012983,2]
[346980137,1735447833769,-500.0,0.00012983,2]
[346980138,1735447833778,-500.0,0.00012983,2]
[346980139,1735447833788,-500.0,0.00012983,2]
[346980140,1735447833797,-500.0,0.00012983,2]
[346980141,1735447833806,-500.0,0.00012983,2]
[346980142,1735447833815,-500.0,0.00012983,2]
[346980143,1735447833824,-500.0,0.00012983,2]
[346980144,1735447833833,-500.0,0.00012983,2]
[346980145,1735447833842,-500.0,0.00012983,2]
[346980146,1735447833851,-399.04258144,0.00012983,2]
[346980147,1735447833860,-500.0,0.00012983,2]
[346980148,1735447833869,-500.0,0.00012983,2]
[346980149,1735447833879,-500.0,0.00012983,2]
[346980150,1735447833888,-500.0,0.00012983,2]
[346980151,1735447833898,-500.0,0.00012983,2]
[346980152,1735447833907,-500.0,0.00012983,2]
[346980153,1735447833916,-650.65,0.00012983,2]
[346980154,1735447833925,-567.74,0.00012983,2]
[346980155,1735447833935,-500.0,0.00012983,2]
[346980156,1735447833944,-500.0,0.00012983,2]
[346980157,1735447833953,-500.0,0.00012983,2]
[346980158,1735447833963,-500.0,0.00012983,2]
[346980159,1735447833972,-500.0,0.00012983,2]
[346980160,1735447833981,-500.0,0.00012983,2]
[346980161,1735447833990,-500.0,0.00012983,2]
[346980162,1735447834001,-500.0,0.00012983,2]
[346980163,1735447834010,-500.0,0.00012983,2]
[346980164,1735447834019,-500.0,0.00012983,2]
[346980165,1735447834028,-500.0,0.00012983,2]
[346980166,1735447834038,-215.7110428,0.00012983,2]
[346980167,1735447834047,-500.0,0.00012983,2]
[346980168,1735447834056,-500.0,0.00012983,2]
[346980169,1735447834066,-511.81352075,0.00012983,2]
[346980170,1735447834075,-500.0,0.00012983,2]
[346980171,1735447834084,-892.56,0.00012983,2]
[346980172,1735447834093,-500.0,0.00012983,2]
[346980173,1735447834102,-500.0,0.00012983,2]
[346980174,1735447834111,-817.01,0.00012983,2]
[346980175,1735447834120,-500.0,0.00012983,2]
[346980176,1735447834129,-635.73664598,0.00012983,2]
[346980177,1735447834138,-500.0,0.00012983,2]
[346980178,1735447834147,-500.0,0.00012983,2]
[346980179,1735447834157,-512.58220144,0.00012983,2]
[346980180,1735447834167,-500.0,0.00012983,2]
[346980181,1735447834179,-501.7575348,0.00012983,2]
[346980182,1735447834188,-877.52,0.00012983,2]
[346980183,1735447834198,-514.41283431,0.00012983,2]
[346980184,1735447834208,-500.0,0.00012983,2]
[346980185,1735447834220,-500.0,0.00012983,2]
[346980186,1735447834230,-500.0,0.00012983,2]
[346980187,1735447834239,-500.0,0.00012983,2]
[346980188,1735447834248,-500.0,0.00012983,2]
[346980189,1735447834258,-511.28471715,0.00012983,2]
[346980190,1735447834267,-500.0,0.00012983,2]
[346980191,1735447834277,-500.0,0.00012983,2]
[346980192,1735447834287,-500.0,0.00012983,2]
[346980193,1735447834297,-200.57404787,0.00012983,2]
[346980194,1735447834306,-372.65871811,0.00012983,2]
[346980195,1735447834316,-500.0,0.00012983,2]
[346980196,1735447834326,-500.0,0.00012983,2]
[346980197,1735447834335,-500.0,0.00012983,2]
[346980198,1735447834344,-215.06126379,0.00012983,2]
[346980199,1735447834354,-500.0,0.00012983,2]
[346980200,1735447834363,-500.0,0.00012983,2]
[346980201,1735447834372,-500.0,0.00012983,2]
[346980202,1735447834381,-500.0,0.00012983,2]
[346980203,1735447834390,-500.0,0.00012983,2]
[346980204,1735447834400,-500.0,0.00012983,2]
[346980205,1735447834410,-500.0,0.00012983,2]
[346980206,1735447834419,-260.98930655,0.00012983,2]
[346980207,1735447834430,-504.63087098,0.00012983,2]
[346980208,1735447834439,-500.0,0.00012983,2]
[346980209,1735447834448,-500.0,0.00012983,2]
[346980210,1735447834458,-535.19220335,0.00012983,2]
[346980211,1735447834466,-500.0,0.00012983,2]
[346980212,1735447834475,-500.0,0.00012983,2]
[346980213,1735447834485,-500.0,0.00012983,2]